bitfinex/quotes_SOLUSD_20250721
["timestamp","ask_amount","ask_price","bid_price","bid_amount"]
[1753112428063,45.7329002,195.93,195.92,5.20412413]
[1753112428369,45.7329002,195.93,195.92,0.1]
[1753112429666,45.7329002,195.93,195.92,10.56090184]
[1753112429959,7.9729002,195.96,195.92,16.38502597]
[1753112430161,37.76,195.95,195.93,0.72]
[1753112430338,37.76,195.95,195.94,10.46090184]
[1753112430540,7.9729002,195.98,195.97,26.0]
[1753112430843,0.68,196.06,195.97,37.18090184]
[1753112430844,45.7329002,196.03,195.97,37.18090184]
[1753112431042,37.76,196.02,195.98,1.23025614]
[1753112431359,7.9729002,196.05,196.03,26.0]
[1753112431557,7.9729002,196.06,196.04,10.46090184]
[1753112431770,37.76,196.07,196.05,10.46090184]
[1753112431943,7.9729002,196.08,196.06,10.46090184]
[1753112432146,45.7329002,196.08,196.07,10.46090184]
[1753112433067,37.76,196.08,196.04,0.7]
[1753112433251,7.9729002,196.07,196.04,0.7]
[1753112433455,7.9729002,196.07,196.06,10.46090184]
[1753112434163,7.9729002,196.06,196.0,26.0]
[1753112434369,7.9729002,196.03,196.02,10.46090184]
[1753112434542,45.7329002,196.03,196.02,10.46090184]
[1753112434742,45.7329002,196.03,196.02,11.16090184]
[1753112434961,37.76,196.03,196.02,10.46090184]
[1753112435271,7.9729002,196.06,196.04,26.0]
[1753112435445,45.7129002,196.08,196.05,11.16090184]
[1753112435639,45.7129002,196.08,196.07,15.56112114]
[1753112435950,7.9729002,196.06,196.04,26.0]
[1753112436162,45.7129002,196.06,196.04,5.10099979]
[1753112436345,7.9729002,196.05,196.04,5.10099979]
[1753112436761,37.74,196.06,195.99,12.75520087]
[1753112436762,45.7129002,196.06,195.99,26.0]
[1753112437063,7.9729002,196.04,196.01,26.0]
[1753112437259,37.74,196.04,196.03,10.46090184]
[1753112437661,45.7129002,196.04,196.03,10.46090184]
[1753112437870,37.74,196.04,196.03,15.56216185]
[1753112438582,45.7729002,196.08,196.03,29.01531187]
[1753112438743,0.06,196.08,196.07,10.46090184]
[1753112438946,37.74,196.12,196.1,26.0]
[1753112439249,45.7729002,196.13,196.11,10.46090184]
[1753112439454,45.7729002,196.13,196.12,10.46090184]
[1753112439455,37.8,196.13,196.12,10.46090184]
[1753112439653,45.7729002,196.13,196.12,10.46090184]
[1753112439848,45.7729002,196.13,196.08,0.7]
[1753112439849,37.8,196.13,196.08,0.7]
[1753112440051,7.9729002,196.1,196.06,26.0]
[1753112440248,17.49468397,196.12,196.06,26.0]
[1753112440249,45.7129002,196.09,196.08,10.46090184]
[1753112440655,37.74,196.1,196.08,26.7]
[1753112440848,45.7129002,196.1,196.09,10.46090184]
[1753112441049,45.7129002,196.1,196.06,26.51004794]
[1753112441050,37.74,196.1,196.08,26.7]
[1753112441251,37.74,196.1,196.09,10.46090184]
[1753112441252,45.7129002,196.1,196.09,10.46090184]
[1753112441557,7.9729002,196.12,196.09,10.46090184]
[1753112441758,37.74,196.12,196.11,15.56008087]
[1753112442074,45.7129002,196.12,196.11,15.56008087]
[1753112442248,45.7129002,196.12,196.11,5.09917903]
[1753112442449,7.9729002,196.1,196.08,10.46090184]
[1753112442668,38.45,196.12,196.06,5.10047944]
[1753112442669,7.9729002,196.08,196.06,5.10047944]
[1753112443051,7.9729002,196.1,196.08,26.0]
[1753112443378,7.9729002,196.1,196.06,17.85167805]
[1753112443551,7.9729002,196.1,196.07,1.21002193]
[1753112443876,7.9729002,196.1,196.09,10.46090184]
[1753112444379,37.78,196.13,196.09,10.46090184]
[1753112444380,7.9729002,196.11,196.09,10.46090184]
[1753112444545,7.9729002,196.12,196.1,10.46090184]
[1753112444747,7.9729002,196.12,196.11,10.46090184]
[1753112445874,7.9729002,196.12,196.11,15.56008087]
[1753112446080,45.7529002,196.13,196.11,16.26008087]
[1753112446280,45.7529002,196.13,196.12,10.46090184]
[1753112446659,0.06,196.13,196.12,11.16090184]
[1753112447378,0.06,196.13,196.11,5.09917903]
[1753112447379,8.0329002,196.13,196.11,5.09917903]
[1753112447666,8.0329002,196.13,196.12,10.46090184]
[1753112448079,8.0329002,196.13,196.12,15.55982086]
[1753112448577,0.06,196.13,196.12,16.25982086]
[1753112448768,0.06,196.13,196.12,5.79891902]
[1753112448977,8.0329002,196.13,196.12,16.25982086]
[1753112449283,8.0329002,196.13,196.12,5.09891902]
[1753112449488,8.0329002,196.13,196.12,15.55982086]
[1753112449860,8.0329002,196.13,196.1,26.0]
[1753112449861,7.9729002,196.11,196.1,31.0992179]
[1753112450064,46.3829002,196.11,196.03,0.7]
[1753112450259,7.9729002,196.08,196.04,5.10099979]
[1753112450579,7.9729002,196.05,196.04,5.10099979]
[1753112450878,7.9729002,196.05,196.04,31.10099979]
[1753112451079,7.9729002,196.06,196.04,15.56190163]
[1753112451257,7.9729002,196.1,196.05,11.6709758]
[1753112451457,7.9729002,196.08,196.06,0.7]
[1753112451677,7.9729002,196.09,196.06,0.7]
[1753112451992,7.9729002,196.08,196.05,0.51007396]
[1753112452280,7.9729002,196.09,196.06,5.10047944]
[1753112452461,7.9729002,196.08,196.06,5.10047944]
[1753112452663,7.9729002,196.08,196.07,10.46090184]
[1753112453987,0.57015202,196.13,196.07,10.46090184]
[1753112453988,7.9729002,196.1,196.07,11.16090184]
[1753112454190,7.9729002,196.1,196.06,12.75119861]
[1753112454402,7.9729002,196.1,196.09,10.46090184]
[1753112456680,7.9729002,196.08,196.07,5.10019402]
[1753112456876,7.9729002,196.08,196.07,10.46090184]
[1753112457278,37.68,196.09,196.07,10.46090184]
[1753112457475,7.9729002,196.08,196.07,10.46090184]
[1753112457977,37.68,196.09,196.07,10.46090184]
[1753112458311,7.9729002,196.05,196.04,26.0]
[1753112458486,7.9729002,196.05,195.98,12.75619391]
[1753112458487,7.9729002,196.04,195.98,12.75619391]
[1753112458798,7.9729002,196.02,195.98,12.75619391]
[1753112459104,1.22015202,196.05,196.0,5.10204081]
[1753112459105,7.9729002,196.01,196.0,5.10204081]
[1753112459578,7.9729002,196.01,196.0,15.56294265]
[1753112459986,7.9729002,196.01,196.0,10.46090184]
[1753112460287,8.6829002,196.01,196.0,10.46090184]
[1753112460593,7.9729002,196.01,196.0,15.56294265]
[1753112460987,7.9729002,196.01,196.0,5.10204081]
[1753112461183,7.9729002,196.01,196.0,15.56294265]
[1753112461502,7.9729002,196.01,196.0,10.46090184]
[1753112461811,7.9729002,196.0,195.99,0.03]
[1753112462111,9.15305222,196.0,195.99,0.03]
[1753112462277,46.83305222,196.0,195.99,0.03]
[1753112462696,63.61773619,196.0,195.99,0.03]
[1753112463080,68.719777,196.0,195.99,0.03]
[1753112463301,63.61773619,196.0,195.99,0.03]
[1753112465295,68.719777,196.0,195.99,0.03]
[1753112465678,79.18067884,196.0,195.99,0.03]
[1753112465876,68.719777,196.0,195.99,0.03]
[1753112466901,79.18067884,196.0,195.99,0.03]
[1753112467488,63.61773619,196.0,195.99,0.03]
[1753112467896,79.18067884,196.0,195.99,0.03]
[1753112468804,79.18067884,196.0,195.96,0.03]
[1753112468805,29.86040603,195.97,195.96,0.03]
[1753112469099,78.51145989,195.97,195.96,0.03]
[1753112469313,24.75758417,195.93,195.92,0.1]
[1753112469476,73.38863803,195.93,195.92,0.1]
[1753112469813,74.05863803,195.93,195.92,0.1]
[1753112470178,25.93773619,195.93,195.92,0.1]
[1753112470404,63.10758417,195.93,195.92,0.1]
[1753112470604,63.61773619,195.93,195.92,0.1]
[1753112471585,63.10758417,195.93,195.92,0.1]
[1753112471788,45.6529002,195.93,195.92,15.66502597]
[1753112472611,63.10758417,195.93,195.92,0.1]
[1753112473109,63.10758417,195.93,195.92,10.56090184]
[1753112473110,62.43758417,195.93,195.92,10.56090184]
[1753112473310,63.10758417,195.93,195.92,10.56090184]
[1753112473483,63.61773619,195.93,195.92,10.56090184]
[1753112473683,45.6529002,195.93,195.92,10.56090184]
[1753112473896,45.6529002,195.93,195.92,15.66502597]
[1753112474285,37.68,195.93,195.92,16.31502597]
[1753112474613,37.68,195.93,195.92,10.56090184]
[1753112474791,45.6529002,195.93,195.92,10.56090184]
[1753112474983,46.3229002,195.93,195.92,0.1]
[1753112475279,45.6529002,195.93,195.92,10.56090184]
[1753112475484,45.6529002,195.93,195.92,15.66502597]
[1753112476502,46.3229002,195.93,195.92,0.1]
[1753112477132,63.10758417,195.93,195.92,0.1]
[1753112477415,62.43758417,195.93,195.92,10.56090184]
[1753112477713,63.10758417,195.93,195.92,0.1]
[1753112478098,73.56848601,195.93,195.92,0.1]
[1753112478297,61.88766566,195.93,195.92,0.1]
[1753112478517,78.67234963,195.93,195.92,0.1]
[1753112479512,68.21144779,195.93,195.92,0.1]
[1753112479804,85.31120165,195.93,195.92,0.1]
[1753112480307,85.31120165,195.93,195.91,0.1]
[1753112480308,35.21848601,195.92,195.91,0.1]
[1753112480490,35.21848601,195.92,195.84,0.1]
[1753112480491,24.75758417,195.85,195.84,0.1]
[1753112480690,62.41758417,195.85,195.84,0.1]
[1753112480890,63.08758417,195.85,195.84,0.1]
[1753112481220,7.9729002,195.77,195.75,10.56090184]
[1753112481394,7.9729002,195.77,195.76,10.46090184]
[1753112481596,45.6329002,195.77,195.76,16.21919771]
[1753112481930,37.66,195.77,195.76,16.21919771]
[1753112482214,7.9729002,195.79,195.76,16.21919771]
[1753112482215,37.66,195.78,195.76,16.21919771]
[1753112482515,45.6329002,195.78,195.77,10.46090184]
[1753112483107,37.66,195.78,195.77,11.11090184]
[1753112483405,7.9729002,195.76,195.75,0.1]
[1753112483605,45.6329002,195.76,195.75,0.1]
[1753112483914,73.54848601,195.76,195.75,0.1]
[1753112484117,78.65678188,195.76,195.75,0.1]
[1753112484326,63.08758417,195.76,195.75,0.1]
[1753112484497,73.54848601,195.76,195.75,0.1]
[1753112484694,79.1669339,195.76,195.75,0.1]
[1753112484925,69.64173619,195.76,195.75,0.1]
[1753112485112,80.10263803,195.76,195.75,0.1]
[1753112485300,68.97173619,195.76,195.75,0.1]
[1753112485693,7.9729002,195.76,195.75,15.66945867]
[1753112486001,45.6329002,195.76,195.75,15.66945867]
[1753112486522,7.9729002,195.77,195.75,15.66945867]
[1753112486707,7.9729002,195.79,195.76,11.11090184]
[1753112486907,7.9729002,195.82,195.77,0.65]
[1753112487110,45.6329002,195.81,195.8,10.46090184]
[1753112487716,45.6329002,195.81,195.8,15.56815413]
[1753112487967,0.51015202,195.82,195.8,16.21815413]
[1753112487968,7.9729002,195.82,195.8,16.21815413]
[1753112488138,37.66,195.81,195.8,5.10725229]
[1753112488417,37.66,195.81,195.8,15.56815413]
[1753112488623,7.9729002,195.8,195.79,10.46090184]
[1753112488832,7.9729002,195.79,195.78,10.46090184]
[1753112489008,45.6329002,195.79,195.78,10.46090184]
[1753112489412,45.6329002,195.79,195.76,5.10829587]
[1753112489413,7.9729002,195.78,195.76,5.10829587]
[1753112489601,7.9729002,195.78,195.77,10.46090184]
[1753112489919,7.9729002,195.78,195.77,15.56893677]
[1753112490421,7.9729002,195.78,195.77,5.10803493]
[1753112490595,37.66,195.79,195.76,0.03]
[1753112490596,7.9729002,195.77,195.76,0.03]
[1753112490806,62.92773619,195.77,195.76,0.03]
[1753112491020,63.59773619,195.77,195.76,0.03]
[1753112492223,79.16667296,195.77,195.76,0.03]
[1753112494141,79.16667296,195.77,195.65,10.46090184]
[1753112494142,7.9729002,195.66,195.65,10.46090184]
[1753112494318,45.6329002,195.66,195.65,10.46090184]
[1753112495129,45.6329002,195.66,195.61,1.6243]
[1753112495130,7.9729002,195.65,195.63,5.11169043]
[1753112495468,7.9729002,195.65,195.64,10.46090184]
[1753112495641,45.6329002,195.65,195.64,10.46090184]
[1753112495855,7.9729002,195.64,195.63,10.46090184]
[1753112496150,7.9729002,195.61,195.6,0.1]
[1753112496328,62.41758417,195.61,195.6,0.1]
[1753112497119,63.13758417,195.61,195.6,0.1]
[1753112497857,24.75758417,195.61,195.6,0.1]
[1753112498155,62.43758417,195.61,195.6,0.1]
[1753112499754,63.15758417,195.61,195.6,0.1]
[1753112499944,63.66773619,195.61,195.6,0.1]
[1753112500252,25.26773619,195.61,195.6,0.1]
[1753112500446,45.6529002,195.61,195.6,5.21247443]
[1753112500829,45.6529002,195.61,195.6,16.38337627]
[1753112501031,7.9729002,195.64,195.6,29.16456236]
[1753112501248,7.9729002,195.63,195.61,0.71]
[1753112501567,7.9729002,195.63,195.62,10.46090184]
[1753112501731,7.9729002,195.63,195.61,0.71]
[1753112501930,16.78468397,195.68,195.6,0.1]
[1753112501931,7.9729002,195.61,195.6,0.1]
[1753112502247,8.48305222,195.61,195.6,0.1]
[1753112502438,25.98773619,195.61,195.6,0.1]
[1753112502636,36.44863803,195.61,195.6,0.1]
[1753112503046,25.98773619,195.61,195.6,0.1]
[1753112503358,41.5608511,195.61,195.6,0.1]
[1753112503558,36.44863803,195.61,195.6,0.1]
[1753112503758,41.5608511,195.61,195.6,0.1]
[1753112503944,36.44863803,195.61,195.6,0.1]
[1753112504640,31.09994926,195.61,195.6,0.1]
[1753112504961,36.44863803,195.61,195.6,0.1]
[1753112505535,41.5608511,195.61,195.6,0.1]
[1753112505961,48.2083511,195.61,195.6,0.1]
[1753112506140,7.9729002,195.53,195.46,0.71]
[1753112506348,45.6529002,195.53,195.5,10.46090184]
[1753112506636,45.6529002,195.53,195.52,10.61953874]
[1753112506839,45.6529002,195.53,195.52,0.1586369]
[1753112507346,45.6529002,195.53,195.52,10.61953874]
[1753112507932,45.6529002,195.53,195.52,0.1586369]
[1753112508535,45.6529002,195.53,195.52,10.61953874]
[1753112508742,45.6529002,195.53,195.52,15.73410502]
[1753112509045,45.6529002,195.53,195.52,16.44410502]
[1753112509455,7.9729002,195.55,195.52,16.44410502]
[1753112509653,45.6529002,195.54,195.53,0.71]
[1753112510669,7.9729002,195.56,195.53,0.71]
[1753112510970,7.9729002,195.6,195.55,12.06470184]
[1753112511270,45.6529002,195.63,195.6,5.11247443]
[1753112511471,7.9729002,195.65,195.62,10.46090184]
[1753112511644,37.68,195.64,195.61,0.71]
[1753112511974,7.9729002,195.63,195.6,5.11247443]
[1753112512180,45.6529002,195.62,195.6,5.82247443]
[1753112512367,45.6529002,195.62,195.61,0.71]
[1753112512548,7.9729002,195.62,195.61,0.71]
[1753112512937,7.9729002,195.63,195.61,0.71]
[1753112513142,7.9729002,195.62,195.61,5.82221307]
[1753112513443,7.9729002,195.62,195.61,15.57311491]
[1753112513641,37.74,195.64,195.61,16.28311491]
[1753112513886,0.06,195.64,195.63,10.46090184]
[1753112514045,0.06,195.64,195.63,11.68207088]
[1753112514447,0.06,195.64,195.63,10.46090184]
[1753112514663,0.06,195.64,195.63,11.17090184]
[1753112515089,0.06,195.64,195.61,31.11221307]
[1753112515382,0.06,195.64,195.63,5.11169043]
[1753112515548,0.06,195.64,195.63,15.57259227]
[1753112515755,8.0329002,195.64,195.63,15.57259227]
[1753112516582,0.06,195.64,195.63,16.28259227]
[1753112518262,0.06,195.64,195.63,5.82169043]
[1753112518573,0.06,195.64,195.63,16.28259227]
[1753112518778,7.9729002,195.66,195.63,16.28259227]
[1753112518971,7.9729002,195.66,195.65,10.46090184]
[1753112519152,45.6329002,195.69,195.66,5.11090667]
[1753112519353,45.6329002,195.69,195.68,10.46090184]
[1753112519879,7.9729002,195.72,195.68,11.17090184]
[1753112520179,0.72,195.77,195.66,19.40167335]
[1753112520180,7.9729002,195.75,195.71,10.46090184]
[1753112520346,7.9729002,195.76,195.74,10.46090184]
[1753112520547,7.9729002,195.76,195.75,11.17090184]
[1753112520858,45.6329002,195.77,195.75,10.46090184]
[1753112521060,45.6329002,195.77,195.72,10.46090184]
[1753112521061,45.6329002,195.77,195.76,10.46090184]
[1753112521688,0.2,195.8,195.76,16.25919771]
[1753112521885,0.2,195.8,195.79,36.46090184]
[1753112522090,7.9729002,195.83,195.79,36.46090184]
[1753112522288,0.06,195.84,195.82,10.46090184]
[1753112522491,0.06,195.84,195.8,0.69]
[1753112522662,7.9729002,195.83,195.81,0.69]
[1753112522856,7.9729002,195.83,195.79,26.0]
[1753112523189,0.06,195.84,195.8,0.69]
[1753112523367,0.06,195.84,195.81,5.10699147]
[1753112523575,1e-08,195.84,195.83,26.0]
[1753112523776,1e-08,195.84,195.83,46.92180368]
[1753112523991,1e-08,195.84,195.83,10.46090184]
[1753112524760,7.97290021,195.84,195.83,10.46090184]
[1753112525258,7.97290021,195.84,195.8,26.0]
[1753112525464,7.9729002,195.83,195.78,5.10777403]
[1753112525664,7.9729002,195.83,195.82,10.46090184]
[1753112526384,1e-08,195.84,195.82,10.46090184]
[1753112526596,7.97290021,195.84,195.83,11.15090184]
[1753112526774,1e-08,195.84,195.83,11.15090184]
[1753112527082,1e-08,195.84,195.83,20.92180368]
[1753112527297,1e-08,195.84,195.83,26.71827357]
[1753112527458,1e-08,195.84,195.83,27.22892055]
[1753112528088,0.57015202,195.92,195.86,26.0]
[1753112528089,0.06,195.92,195.86,26.0]
[1753112528297,0.06,195.95,195.94,26.0]
[1753112528593,1e-08,195.95,195.94,46.92180368]
[1753112528792,0.06,195.99,195.94,47.61180368]
[1753112529000,7.9729002,195.98,195.95,26.0]
[1753112529313,7.9729002,195.98,195.97,10.46090184]
[1753112529516,7.9729002,195.98,195.97,15.5637237]
[1753112529718,0.06,195.99,195.97,15.5637237]
[1753112529886,0.06,195.99,195.98,11.15090184]
[1753112530100,0.06,195.99,195.98,11.66115798]
[1753112530413,0.06,195.99,195.98,11.15090184]
[1753112530595,0.06,195.99,195.98,10.46090184]
[1753112530800,7.9729002,196.04,195.98,11.66115798]
[1753112531015,0.51015202,196.06,196.03,10.46090184]
[1753112531312,37.6,196.07,196.05,15.56153418]
[1753112531494,37.6,196.07,196.06,10.46090184]
[1753112531914,38.27,196.07,196.05,10.46090184]
[1753112532111,38.27,196.07,196.01,5.10178052]
[1753112532419,38.27,196.07,196.05,10.46090184]
[1753112532609,37.6,196.07,196.06,10.46090184]
[1753112533089,37.6,196.07,196.01,17.85623182]
[1753112533296,38.27,196.07,196.04,10.46090184]
[1753112533494,38.27,196.07,195.99,5.10230113]
[1753112533495,17.96483599,196.06,196.01,10.46090184]
[1753112533706,16.78468397,196.04,196.01,10.46090184]
[1753112533902,1.18015202,196.03,196.0,10.46090184]
[1753112534113,0.51015202,196.03,196.02,10.46090184]
[1753112534312,0.06,196.03,195.99,5.10230113]
[1753112534617,0.06,196.03,196.02,10.46090184]
[1753112534817,0.06,196.03,195.99,5.10230113]
[1753112535186,0.73,196.03,195.99,5.10230113]
[1753112535392,0.73,196.03,196.01,10.46090184]
[1753112535801,0.73,196.03,196.02,10.46090184]
[1753112536095,0.06,196.03,196.02,10.46090184]
[1753112538416,0.06,196.03,196.01,10.46090184]
[1753112538625,0.73,196.03,196.01,10.46090184]
[1753112538801,0.06,196.03,196.02,10.46090184]
[1753112539918,0.06,196.03,196.02,16.25242209]
[1753112540495,0.06,196.03,196.02,0.69]
[1753112540711,0.06,196.03,196.02,16.25242209]
[1753112540899,0.06,196.12,196.02,29.00622272]
[1753112541116,0.06,196.12,196.11,10.46090184]
[1753112542507,0.73,196.12,196.1,10.46090184]
[1753112542716,17.96483599,196.11,196.03,5.79125501]
[1753112542905,37.56,196.1,196.08,10.46090184]
[1753112543305,38.23,196.1,196.08,10.46090184]
[1753112543724,43.32958514,196.1,196.08,10.46090184]
[1753112543904,43.32958514,196.1,196.03,0.69]
[1753112543905,43.83973716,196.1,196.07,10.46090184]
[1753112544106,37.56,196.1,196.09,10.46090184]
[1753112546106,0.06,196.12,196.09,10.46090184]
[1753112546424,0.06,196.12,196.06,5.10044671]
[1753112546425,0.06,196.12,196.11,10.46090184]
[1753112546622,0.06,196.12,196.07,0.69]
[1753112546926,17.45468397,196.11,196.08,10.46090184]
[1753112547109,0.67,196.1,196.08,10.46090184]
[1753112547497,5.09969911,196.09,196.08,10.46090184]
[1753112547697,43.30969911,196.09,196.03,26.0]
[1753112547918,0.51015202,196.08,196.04,10.46090184]
[1753112548103,0.67,196.07,196.05,10.46090184]
[1753112548297,1.18015202,196.07,196.05,10.46090184]
[1753112548517,0.67,196.07,196.04,10.46090184]
[1753112548819,1.18015202,196.06,195.96,10.46090184]
[1753112549032,37.54,196.05,196.02,10.46090184]
[1753112549199,38.21,196.05,195.97,1.20028218]
[1753112549400,38.21,196.05,196.03,10.46090184]
[1753112549836,38.21,196.05,195.94,0.03]
[1753112549837,17.96483599,196.04,195.94,0.03]
[1753112550000,17.96483599,196.04,196.01,10.46090184]
[1753112550725,17.96483599,196.04,195.95,5.79310553]
[1753112550726,0.67,196.03,196.0,10.46090184]
[1753112550895,0.67,196.02,195.99,10.46090184]
[1753112551218,0.67,196.02,195.94,26.54036031]
[1753112551219,38.21,196.01,195.98,10.46090184]
[1753112551418,38.21,196.01,195.94,26.03]
[1753112551419,38.21,196.01,195.99,10.46090184]
[1753112551630,43.31181412,196.01,195.99,10.46090184]
[1753112551918,1.20015202,196.0,195.95,10.46090184]
[1753112552135,0.69,195.99,195.95,10.46090184]
[1753112552342,1.20015202,195.98,195.94,0.03]
[1753112552494,37.54,195.97,195.94,0.03]
[1753112552700,27.75573783,195.96,195.94,0.03]
[1753112552922,16.78468397,195.95,195.94,0.03]
[1753112553128,54.99468397,195.95,195.94,0.03]
[1753112553623,70.55892849,195.95,195.94,0.03]
[1753112554108,60.09802665,195.95,195.94,0.03]
[1753112554503,54.99468397,195.95,195.94,0.03]
[1753112554821,54.30468397,195.95,195.94,0.03]
[1753112555025,0.51015202,195.97,195.94,10.49090184]
[1753112555219,37.52,195.97,195.96,10.46090184]
[1753112555407,37.52,195.97,195.95,10.46090184]
[1753112555603,38.03015202,195.97,195.94,0.03]
[1753112555811,37.52,195.97,195.94,0.03]
[1753112556110,17.98483599,195.96,195.94,0.03]
[1753112556525,0.69,195.95,195.94,0.03]
[1753112557824,17.29483599,195.96,195.94,0.03]
[1753112558007,37.52,195.97,195.94,10.49090184]
[1753112558213,37.52,195.97,195.96,10.46090184]
[1753112559919,37.52,195.97,195.96,15.5639841]
[1753112560725,37.52,195.99,195.96,16.2739841]
[1753112560922,37.52,196.0,195.98,10.46090184]
[1753112561231,0.06,196.07,195.99,11.17090184]
[1753112561232,37.52,196.01,195.99,11.17090184]
[1753112561439,37.52,196.04,196.0,11.17090184]
[1753112561644,37.52,196.04,196.03,10.46090184]
[1753112561931,37.52,196.04,196.03,11.17090184]
[1753112562336,37.52,196.04,196.03,16.27216185]
[1753112562511,37.58,196.07,196.03,16.27216185]
[1753112562716,0.69,196.06,195.99,26.0]
[1753112562931,0.69,196.06,196.03,10.46090184]
[1753112563123,0.51015202,196.05,196.03,10.46090184]
[1753112563323,38.21,196.04,196.0,10.46090184]
[1753112563525,38.72015202,196.04,196.0,10.46090184]
[1753112563713,37.52,196.04,196.01,10.46090184]
[1753112563923,37.52,196.04,196.03,10.46090184]
[1753112564117,37.52,196.04,196.01,0.71]
[1753112564428,37.52,196.04,196.03,10.46090184]
[1753112564934,37.52,196.04,195.99,26.0]
[1753112565136,0.69,196.03,196.01,10.46090184]
[1753112565513,0.69,196.02,196.0,10.46090184]
[1753112565720,37.52,196.01,196.0,10.46090184]
[1753112567739,37.52,196.01,196.0,16.27294265]
[1753112568229,37.52,196.01,196.0,15.56294265]
[1753112568629,37.52,196.01,195.99,5.10226833]
[1753112568841,37.52,196.01,196.0,10.46090184]
[1753112569741,37.52,196.01,195.98,5.10256148]
[1753112569931,37.52,196.01,196.0,10.46090184]
[1753112570251,37.52,196.01,195.97,26.0]
[1753112570565,37.52,196.01,195.95,2.2831]
[1753112570566,37.52,196.01,195.98,10.46090184]
[1753112570746,0.69,196.0,195.98,10.46090184]
[1753112570926,0.69,196.0,195.97,10.46090184]
[1753112571546,1.20015202,195.99,195.97,10.46090184]
[1753112571747,0.69,195.98,195.96,10.46090184]
[1753112571945,37.5,195.97,195.96,10.46090184]
[1753112574756,37.5,195.97,195.96,15.5639841]
[1753112575058,37.5,195.97,195.96,10.46090184]
[1753112575223,37.5,195.98,195.96,16.27387273]
[1753112575427,37.5,195.98,195.97,10.46090184]
[1753112576253,37.5,195.98,195.97,15.5637237]
[1753112576849,0.06,196.03,195.97,16.2737237]
[1753112577166,37.5,196.0,195.97,5.81282186]
[1753112577526,0.06,196.03,195.97,5.81282186]
[1753112577731,37.5,196.01,195.98,0.71]
[1753112577933,0.06,196.03,195.97,5.10282186]
[1753112577934,0.06,196.03,195.99,5.81230113]
[1753112578156,0.06,196.03,196.0,0.51020408]
[1753112578460,0.06,196.03,196.02,10.46090184]
[1753112580058,0.06,196.03,196.02,15.56242209]
[1753112580265,0.06,196.03,196.02,10.46090184]
[1753112580636,0.75,196.03,195.96,26.03]
[1753112580959,10.46090184,195.97,195.96,0.03]
[1753112581134,16.78468397,195.96,195.89,0.03]
[1753112581342,10.46090184,195.91,195.89,0.03]
[1753112581657,71.87003783,195.9,195.89,0.03]
[1753112581956,16.78468397,195.87,195.78,5.10754925]
[1753112582146,16.78468397,195.85,195.79,10.46090184]
[1753112582345,17.29483599,195.85,195.79,10.46090184]
[1753112582537,37.48,195.86,195.82,10.46090184]
[1753112582941,37.48,195.86,195.81,10.46090184]
[1753112583535,37.48,195.86,195.82,10.46090184]
[1753112583732,16.78468397,195.88,195.84,10.46090184]
[1753112583948,37.5,195.87,195.84,15.56710912]
[1753112584762,37.5,195.87,195.84,10.46090184]
[1753112585058,0.67,195.86,195.82,10.46090184]
[1753112585592,48.47105386,195.87,195.81,31.1069763]
[1753112585593,0.67,195.85,195.81,41.56787814]
[1753112585760,37.5,195.87,195.83,10.46090184]
[1753112586064,37.5,195.87,195.84,5.10620915]
[1753112586362,37.5,195.87,195.84,15.56711099]
[1753112586857,37.5,195.87,195.85,10.46090184]
[1753112587754,37.5,195.87,195.86,10.46090184]
[1753112587964,37.5,195.87,195.86,15.56658957]
[1753112588142,37.48,195.88,195.86,16.27658957]
[1753112588346,37.48,195.88,195.87,10.46090184]
[1753112591287,38.15,195.88,195.85,10.46090184]
[1753112591444,0.67,195.87,195.85,10.46090184]
[1753112591759,0.67,195.87,195.83,5.10646989]
[1753112591760,0.67,195.87,195.83,15.56737173]
[1753112592060,0.67,195.87,195.81,5.10697121]
[1753112592261,10.97105386,195.86,195.81,10.46090184]
[1753112592577,0.67,195.85,195.82,10.46090184]
[1753112592780,37.48,195.84,195.82,10.46090184]
[1753112592962,37.48,195.84,195.83,10.46090184]